bitfinex/quotes_SOLUSD_20240606
["timestamp","ask_amount","ask_price","bid_price","bid_amount"]
[1717707635174,6.67,170.5,170.47,35.15]
[1717707635852,6.67,170.49,170.47,35.15]
[1717707636584,45.0,170.54,170.47,35.15]
[1717707636759,6.67,170.52,170.47,35.15]
[1717707636957,6.67,170.52,170.47,41.1577]
[1717707638064,6.67,170.51,170.47,41.1577]
[1717707638984,6.67,170.52,170.47,41.1577]
[1717707639354,6.67,170.48,170.47,41.1577]
[1717707639555,2.1695,170.54,170.47,41.1577]
[1717707639862,6.67,170.49,170.47,41.1577]
[1717707640258,6.2175,170.58,170.47,41.1577]
[1717707640463,6.67,170.5,170.47,35.15]
[1717707640665,6.67,170.5,170.49,35.15]
[1717707641159,2.1693,170.56,170.49,35.15]
[1717707641684,6.67,170.51,170.5,35.15]
[1717707641859,47.1692,170.57,170.5,35.15]
[1717707642180,6.67,170.52,170.5,35.15]
[1717707642356,47.1692,170.57,170.5,35.15]
[1717707642557,6.67,170.51,170.5,35.15]
[1717707643161,26.68,170.55,170.5,35.15]
[1717707643368,26.68,170.55,170.51,35.15]
[1717707643885,6.67,170.52,170.51,35.15]
[1717707645176,2.1681,170.66,170.53,177.0814]
[1717707645500,300.49511585,170.75,170.58,35.15]
[1717707645501,6.502,170.72,170.58,35.15]
[1717707645683,6.67,170.63,170.6,57.0814]
[1717707645856,2.1677,170.69,170.6,57.0814]
[1717707646057,6.67,170.64,170.6,57.0814]
[1717707646459,6.67,170.64,170.6,41.6317]
[1717707646788,2.1674,170.71,170.62,41.6317]
[1717707646964,6.67,170.66,170.64,35.15]
[1717707647281,26.68,170.73,170.64,35.15]
[1717707647777,2.1673,170.72,170.64,35.15]
[1717707647962,2.1671,170.73,170.65,35.15]
[1717707648558,45.0,170.73,170.65,35.15]
[1717707648756,2.1674,170.71,170.65,35.15]
[1717707648959,2.1674,170.71,170.63,35.15]
[1717707650767,45.0,170.72,170.63,35.15]
[1717707650985,47.1674,170.72,170.63,35.15]
[1717707651184,2.1674,170.71,170.63,35.15]
[1717707652887,45.0,170.72,170.63,35.15]
[1717707653084,6.6168,170.68,170.64,35.15]
[1717707653388,4.3361,170.66,170.62,35.15]
[1717707653587,2.1684,170.63,170.62,35.15]
[1717707653977,2.1684,170.63,170.57,35.15]
[1717707654171,2.1683,170.64,170.57,35.15]
[1717707655291,53.785,170.65,170.57,35.15]
[1717707656669,2.1683,170.64,170.57,35.15]
[1717707656886,45.0,170.65,170.59,35.15]
[1717707657192,45.0,170.65,170.61,35.15]
[1717707660397,6.1282,170.72,170.63,35.15]
[1717707660598,2.1671,170.73,170.65,35.15]
[1717707660805,2.1673,170.72,170.65,35.15]
[1717707661102,12.60467585,170.76,170.67,35.15]
[1717707661103,6.10427585,170.76,170.67,35.15]
[1717707661395,2.1665,170.78,170.69,35.15]
[1717707661578,2.1665,170.78,170.71,35.15]
[1717707661775,6.10472527,170.8,170.71,35.15]
[1717707661776,8.27102527,170.8,170.71,35.15]
[1717707661997,2.1664,170.79,170.71,35.15]
[1717707662604,2.1664,170.79,170.69,35.15]
[1717707662791,2.1664,170.79,170.71,35.15]
[1717707663104,2.1665,170.78,170.71,35.15]
[1717707664898,45.0,170.79,170.71,35.15]
[1717707665084,45.0,170.79,170.73,35.15]
[1717707665283,47.1662,170.8,170.73,35.15]
[1717707665905,2.1664,170.79,170.73,35.15]
[1717707666110,47.1664,170.79,170.71,35.15]
[1717707666397,47.1664,170.79,170.73,35.15]
[1717707666606,45.0,170.78,170.73,35.15]
[1717707666795,2.1664,170.79,170.73,35.15]
[1717707666796,10.7697,170.79,170.73,35.15]
[1717707667102,2.1668,170.76,170.73,35.15]
[1717707667308,47.1668,170.76,170.67,35.15]
[1717707667497,47.1668,170.76,170.69,35.15]
[1717707667685,47.1668,170.76,170.71,35.15]
[1717707668204,45.0,170.76,170.71,35.15]
[1717707668399,22.1339,170.75,170.66,35.15]
[1717707668584,22.1339,170.75,170.59,6.1849]
[1717707668585,2.1677,170.69,170.6,35.15]
[1717707669088,2.1676,170.7,170.6,35.15]
[1717707669485,20.04,170.69,170.6,35.15]
[1717707669690,45.17,170.68,170.61,35.15]
[1717707669892,45.34,170.68,170.61,35.15]
[1717707670212,2.1679,170.67,170.61,35.15]
[1717707670697,47.5078,170.68,170.56,35.15]
[1717707671198,47.1679,170.67,170.56,35.15]
[1717707671397,2.1679,170.67,170.56,35.15]
[1717707671805,47.1679,170.67,170.58,35.15]
[1717707672514,2.168,170.66,170.58,35.15]
[1717707672820,45.0,170.66,170.58,35.15]
[1717707673205,47.1679,170.67,170.58,35.15]
[1717707674922,2.168,170.66,170.58,35.15]
[1717707675131,47.168,170.66,170.58,35.15]
[1717707675513,2.168,170.66,170.58,35.15]
[1717707680510,47.1679,170.67,170.58,35.15]
[1717707680724,2.168,170.66,170.58,35.15]
[1717707682823,4.3358,170.67,170.58,35.15]
[1717707683041,2.1682,170.65,170.58,35.15]
[1717707684122,47.5081,170.66,170.58,35.15]
[1717707684525,2.1681,170.65,170.58,35.15]
[1717707684837,49.6763,170.66,170.58,35.15]
[1717707685010,15.1774,170.65,170.56,35.15]
[1717707685205,2.1686,170.62,170.56,35.15]
[1717707685636,2.1685,170.63,170.56,35.15]
[1717707686036,2.1685,170.62,170.56,35.15]
[1717707686243,45.0,170.64,170.56,35.15]
[1717707686244,49.3367,170.64,170.56,35.15]
[1717707686537,2.1686,170.62,170.56,35.15]
[1717707690232,2.1687,170.61,170.56,35.15]
[1717707690850,2.1686,170.62,170.56,35.15]
[1717707691222,2.3384,170.63,170.56,35.15]
[1717707691543,2.1685,170.62,170.56,35.15]
[1717707692150,2.1685,170.63,170.56,35.15]
[1717707692531,2.1686,170.62,170.56,35.15]
[1717707692726,2.1684,170.63,170.56,35.15]
[1717707694043,2.1685,170.62,170.56,35.15]
[1717707695829,6.69,170.6,170.55,35.15]
[1717707696138,71.76,170.64,170.55,56.908]
[1717707696344,6.69,170.58,170.55,41.5901]
[1717707696545,6.69,170.57,170.55,41.5901]
[1717707696739,2.1688,170.6,170.55,41.5901]
[1717707696943,6.69,170.57,170.55,41.5901]
[1717707698125,6.69,170.58,170.55,41.5901]
[1717707699053,2.1687,170.61,170.55,41.5901]
[1717707699345,0.34,170.63,170.55,41.5901]
[1717707699553,2.5085,170.63,170.55,41.5901]
[1717707699727,6.69,170.59,170.55,56.81]
[1717707699926,2.5085,170.63,170.55,56.81]
[1717707700144,0.34,170.63,170.55,56.81]
[1717707700350,2.1684,170.63,170.55,56.81]
[1717707700733,6.5042,170.66,170.57,35.15]
[1717707700734,2.1681,170.66,170.57,35.15]
[1717707700933,6.69,170.63,170.59,35.15]
[1717707701749,2.1681,170.65,170.59,35.15]
[1717707701947,13.006,170.69,170.59,35.15]
[1717707702259,6.69,170.64,170.58,41.4209]
[1717707702437,2.1679,170.67,170.58,41.4209]
[1717707702630,6.69,170.64,170.58,48.1109]
[1717707703857,2.168,170.66,170.58,41.4209]
[1717707704434,45.0,170.67,170.58,41.4209]
[1717707704760,45.0,170.67,170.6,35.15]
[1717707705545,47.1679,170.67,170.6,35.15]
[1717707705746,47.1679,170.67,170.61,2.00199004]
[1717707706243,47.1679,170.67,170.6,35.15]
[1717707706560,2.168,170.66,170.6,35.15]
[1717707707565,47.1679,170.67,170.6,35.15]
[1717707707746,2.1679,170.67,170.6,35.15]
[1717707708457,2.168,170.66,170.6,35.15]
[1717707708861,2.1679,170.67,170.6,35.15]
[1717707710252,47.1678,170.68,170.6,35.15]
[1717707710443,2.1678,170.68,170.6,35.15]
[1717707710957,47.1677,170.69,170.6,35.15]
[1717707711155,2.1677,170.69,170.6,35.15]
[1717707711662,2.1678,170.68,170.6,35.15]
[1717707714744,2.1679,170.67,170.6,35.15]
[1717707715455,2.1678,170.68,170.6,35.15]
[1717707716155,2.1677,170.69,170.6,35.15]
[1717707716335,2.1678,170.68,170.6,35.15]
[1717707716744,2.1679,170.67,170.6,35.15]
[1717707717671,55.8377,170.7,170.55,35.15]
[1717707717672,0.17,170.66,170.55,35.15]
[1717707717873,0.17,170.66,170.55,57.009]
[1717707717874,2.1689,170.59,170.55,57.009]
[1717707718261,2.1688,170.6,170.55,57.009]
[1717707719071,45.0,170.61,170.55,57.009]
[1717707720752,2.1685,170.63,170.55,57.009]
[1717707722375,2.1685,170.62,170.55,57.009]
[1717707722575,6.10746064,170.66,170.55,57.009]
[1717707722788,2.1681,170.66,170.57,35.15]
[1717707723078,2.168,170.66,170.59,35.15]
[1717707723663,2.1679,170.67,170.59,35.15]
[1717707723975,6.68,170.67,170.61,35.15]
[1717707724157,6.68,170.67,170.61,41.83]
[1717707724767,6.68,170.67,170.61,35.15]
[1717707726180,2.1676,170.69,170.61,35.15]
[1717707726360,6.68,170.67,170.61,35.15]
[1717707727778,2.1677,170.69,170.61,35.15]
[1717707727964,6.68,170.66,170.61,35.15]
[1717707728157,6.68,170.66,170.63,35.15]
[1717707728358,45.0,170.7,170.61,35.17]
[1717707728558,6.68,170.63,170.61,35.17]
[1717707728770,51.68,170.62,170.61,35.17]
[1717707729056,6.68,170.62,170.57,35.17]
[1717707729255,6.68,170.62,170.59,35.17]
[1717707729983,6.68,170.63,170.59,35.17]
[1717707730183,2.1681,170.66,170.61,35.17]
[1717707730382,2.1677,170.69,170.61,41.3726]
[1717707730892,6.68,170.66,170.61,56.4682]
[1717707731884,2.1678,170.68,170.61,56.4682]
[1717707734274,2.1679,170.67,170.61,56.4682]
[1717707736094,2.1678,170.68,170.61,56.4682]
[1717707736390,47.1677,170.69,170.61,56.4682]
[1717707736564,45.0,170.68,170.61,56.4682]
[1717707736884,2.1678,170.68,170.61,56.4682]
[1717707737388,2.1679,170.67,170.61,56.4682]
[1717707738159,2.1678,170.68,170.61,56.4682]
[1717707739295,15.1748,170.68,170.61,35.17]
[1717707739496,2.1682,170.65,170.58,35.17]
[1717707739667,2.1682,170.65,170.59,30.0]
[1717707739868,2.1682,170.65,170.6,35.17]
[1717707740795,2.1682,170.65,170.58,35.17]
[1717707741092,2.1683,170.64,170.58,35.17]
[1717707742181,47.1682,170.65,170.58,35.17]
[1717707742387,2.1683,170.64,170.58,35.17]
[1717707743672,2.1686,170.62,170.54,35.17]
[1717707744196,47.1685,170.63,170.54,35.17]
[1717707744689,2.1685,170.62,170.54,35.17]
[1717707745197,2.1685,170.62,170.56,35.17]
[1717707745579,47.1685,170.63,170.56,35.17]
[1717707747195,2.1685,170.63,170.56,35.17]
[1717707750290,45.17,170.64,170.56,35.17]
[1717707750611,47.3383,170.64,170.56,35.17]
[1717707751299,2.3383,170.64,170.56,35.17]
[1717707751591,2.1686,170.62,170.56,35.17]
[1717707751979,6.69,170.59,170.56,35.17]
[1717707753181,6.69,170.6,170.56,35.17]
[1717707754195,6.69,170.59,170.56,35.17]
[1717707756085,47.1685,170.63,170.56,35.17]
[1717707756300,6.69,170.6,170.56,35.17]
[1717707756482,45.0,170.59,170.56,35.17]
[1717707762609,6.86,170.64,170.56,35.17]
[1717707762907,47.1685,170.63,170.56,35.17]
[1717707763123,6.69,170.6,170.56,35.17]
[1717707763615,47.1685,170.63,170.56,35.17]
[1717707763907,6.69,170.6,170.56,35.17]
[1717707766718,2.1685,170.63,170.56,35.17]
[1717707766894,6.69,170.6,170.56,35.17]
[1717707769307,2.1685,170.62,170.56,35.17]
[1717707769500,6.69,170.6,170.56,35.17]
[1717707769720,2.1685,170.63,170.56,35.17]
[1717707769921,6.69,170.6,170.56,35.17]
[1717707771301,6.19,170.6,170.56,35.17]
[1717707773037,2.1684,170.63,170.56,35.17]
[1717707773209,6.69,170.6,170.56,35.17]
[1717707778511,2.1685,170.62,170.56,35.17]
[1717707778710,6.69,170.6,170.56,35.17]
[1717707780834,6.69,170.59,170.57,35.17]
[1717707785917,6.69,170.59,170.54,35.17]
[1717707786217,6.69,170.59,170.54,41.2451]
[1717707793540,2.1685,170.62,170.54,41.2451]
[1717707793751,6.69,170.6,170.54,41.2451]
[1717707794044,6.69,170.59,170.54,41.2451]
[1717707794956,2.1685,170.62,170.54,41.2451]
[1717707795265,6.69,170.59,170.54,41.2451]
[1717707797465,6.69,170.59,170.54,41.2451]
[1717707805146,2.1686,170.61,170.54,41.2451]
[1717707805459,6.69,170.58,170.53,35.17]
[1717707805675,6.69,170.58,170.55,35.17]
[1717707806269,6.69,170.57,170.55,35.17]
[1717707806741,2.1689,170.6,170.52,5.866]
[1717707806742,6.69,170.56,170.53,35.17]
[1717707807058,8.8595,170.54,170.53,35.17]
[1717707807261,6.69,170.54,170.47,35.17]
[1717707807446,6.69,170.53,170.47,35.17]
[1717707808169,6.69,170.53,170.48,35.17]
[1717707809071,6.69,170.53,170.47,35.17]
[1717707809254,6.69,170.53,170.49,35.17]
[1717707810379,2.1694,170.56,170.49,35.17]
[1717707810691,17.5002,170.59,170.49,35.17]
[1717707810692,6.69,170.54,170.49,35.17]
[1717707812553,2.1692,170.57,170.49,35.17]
[1717707812752,47.1692,170.57,170.49,41.86]
[1717707813066,15.3295,170.63,170.51,35.17]
[1717707813262,15.3295,170.63,170.55,35.17]
[1717707813263,6.6554,170.63,170.55,35.17]
[1717707813576,6.69,170.61,170.55,35.17]
[1717707814083,6.6554,170.63,170.55,41.86]
[1717707814282,6.69,170.61,170.55,41.86]
[1717707815271,2.1685,170.62,170.55,41.86]
[1717707815478,2.1685,170.63,170.55,41.86]
[1717707815855,22.1683,170.64,170.57,35.17]
[1717707816246,6.69,170.63,170.57,35.17]
[1717707816666,8.8584,170.63,170.57,35.17]
[1717707817872,6.69,170.62,170.57,35.17]
[1717707818457,8.8585,170.62,170.57,35.17]
[1717707819761,8.8587,170.61,170.58,35.17]
[1717707819962,51.69,170.6,170.58,35.17]
[1717707822301,51.69,170.6,170.54,35.17]
[1717707826386,51.69,170.6,170.53,35.17]
[1717707826689,45.0,170.6,170.55,35.17]
[1717707826894,51.69,170.6,170.55,35.17]
[1717707830391,30.8415,170.64,170.55,35.17]
[1717707830392,2.1685,170.63,170.55,35.17]
[1717707830706,8.8585,170.62,170.55,41.86]
[1717707831102,2.1685,170.62,170.55,41.86]
[1717707831302,8.8585,170.62,170.55,41.86]
[1717707831799,6.69,170.62,170.55,41.86]
[1717707832503,6.69,170.62,170.57,35.17]
[1717707833403,8.8585,170.62,170.57,35.17]
[1717707835007,8.8585,170.62,170.56,35.17]
[1717707836105,8.8587,170.61,170.57,35.17]
[1717707836318,45.0,170.6,170.57,35.17]
[1717707836515,51.69,170.6,170.57,35.17]
[1717707837403,51.69,170.6,170.58,35.17]
[1717707837781,45.0,170.6,170.58,35.17]
[1717707838400,45.0,170.6,170.55,35.17]
[1717707843792,51.69,170.6,170.55,35.17]
[1717707843991,45.0,170.6,170.55,35.17]
[1717707845021,2.1686,170.62,170.55,35.17]
[1717707845317,6.69,170.61,170.55,41.86]
[1717707850301,2.1686,170.62,170.55,41.86]
[1717707850605,6.69,170.61,170.55,41.86]
[1717707853514,2.1686,170.62,170.55,41.86]
[1717707853695,6.69,170.61,170.55,41.86]
[1717707856014,6.69,170.61,170.55,35.17]
[1717707857615,47.1685,170.63,170.55,35.17]
[1717707857913,6.69,170.61,170.55,35.17]
[1717707858113,2.1685,170.62,170.55,35.17]
[1717707858314,6.69,170.61,170.55,35.17]
[1717707858504,47.1684,170.63,170.55,35.17]
[1717707859997,47.1685,170.63,170.55,35.17]
[1717707860916,45.0,170.63,170.55,35.17]
[1717707861928,47.1684,170.63,170.55,35.17]
[1717707862102,45.0,170.63,170.55,35.17]
[1717707862620,47.1684,170.63,170.55,35.17]
[1717707866320,2.1683,170.64,170.55,35.17]
[1717707866524,2.1683,170.64,170.56,0.34]
[1717707866902,4.3356,170.68,170.57,6.5871]
[1717707867220,2.1679,170.67,170.58,55.51]
[1717707867598,2.1678,170.68,170.58,55.51]
[1717707868418,2.1679,170.67,170.58,55.51]
[1717707868797,2.1682,170.65,170.58,55.51]
[1717707869000,2.168,170.66,170.58,55.51]
[1717707869696,2.1681,170.65,170.58,55.17]
[1717707870316,2.1683,170.64,170.58,55.17]
[1717707870621,2.1682,170.65,170.58,55.17]
[1717707872319,47.1681,170.66,170.58,55.17]
[1717707873209,2.1681,170.66,170.58,55.17]
[1717707875220,2.1682,170.65,170.58,55.17]
[1717707876929,2.1681,170.66,170.58,55.17]
[1717707877113,2.1682,170.65,170.58,55.17]
[1717707877426,49.3359,170.67,170.58,55.17]
[1717707877615,2.1683,170.64,170.58,55.17]
[1717707878408,2.1682,170.65,170.58,55.17]
[1717707878919,0.34,170.66,170.58,55.17]
[1717707879120,2.1682,170.65,170.58,55.17]
[1717707880324,0.34,170.66,170.58,55.17]
[1717707880325,2.5081,170.66,170.58,55.17]
[1717707880505,2.1681,170.65,170.58,55.17]
[1717707881233,2.5081,170.66,170.58,55.17]
[1717707881612,2.1681,170.66,170.58,55.17]
[1717707882337,2.1681,170.65,170.58,55.17]
[1717707883617,2.1681,170.66,170.58,55.17]
[1717707884939,2.1682,170.65,170.58,55.17]
[1717707889438,2.1681,170.66,170.58,55.17]
[1717707890237,2.1681,170.65,170.58,55.17]
[1717707890816,2.1681,170.66,170.58,55.17]
[1717707897739,2.1682,170.65,170.58,55.17]
[1717707899026,2.1681,170.66,170.58,55.17]
[1717707899956,2.1681,170.65,170.58,55.17]
[1717707901737,2.1681,170.65,170.58,35.17]
[1717707903240,2.1683,170.64,170.58,35.17]
[1717707905166,45.0,170.65,170.58,35.17]
[1717707905453,2.1683,170.64,170.6,35.17]
[1717707906554,45.0,170.65,170.6,35.17]
[1717707906761,2.1687,170.61,170.57,35.17]
[1717707907444,47.1686,170.62,170.57,35.17]
[1717707907652,47.1686,170.62,170.56,35.17]
[1717707907958,2.1686,170.61,170.56,35.17]
[1717707909658,45.0,170.62,170.56,35.17]
[1717707909854,2.1688,170.6,170.55,35.17]
[1717707910055,47.1688,170.6,170.55,35.17]
[1717707911161,45.0,170.59,170.55,35.17]
[1717707911460,2.1688,170.6,170.55,35.17]
[1717707912236,45.34,170.61,170.55,35.17]
[1717707912437,2.1689,170.59,170.52,35.17]
[1717707916061,2.1688,170.6,170.52,35.17]
[1717707917955,2.1689,170.59,170.52,35.17]
[1717707919452,51.846,170.61,170.52,35.17]
[1717707919669,2.1691,170.58,170.52,35.17]
[1717707920167,47.169,170.59,170.52,35.17]
[1717707920354,2.169,170.58,170.52,35.17]
[1717707921066,47.169,170.59,170.52,35.17]
[1717707921767,2.169,170.58,170.52,35.17]
[1717707922965,47.169,170.59,170.52,35.17]
[1717707924251,2.169,170.59,170.52,35.17]
[1717707924456,2.169,170.58,170.52,35.17]
[1717707928073,2.1691,170.57,170.52,35.17]
[1717707929375,2.1695,170.54,170.51,35.17]
[1717707930481,47.1695,170.55,170.49,35.17]
[1717707931750,2.1695,170.54,170.49,35.17]
[1717707934960,45.0,170.55,170.49,35.17]
[1717707934961,2.1697,170.53,170.49,35.17]
[1717707935378,4.3394,170.53,170.49,35.17]
[1717707935580,2.17,170.51,170.49,35.17]
[1717707935758,2.17,170.51,170.46,15.3885]
[1717707935964,2.17,170.51,170.46,50.5585]
[1717707936963,2.17,170.51,170.44,35.17]
[1717707937871,47.1698,170.52,170.44,35.17]
[1717707939564,45.0,170.52,170.44,35.17]
[1717707939762,47.1698,170.52,170.44,35.17]
[1717707940090,2.1699,170.51,170.44,35.17]
[1717707940965,6.3043,170.51,170.4,35.17]
[1717707941262,2.1707,170.45,170.4,35.17]
[1717707941474,2.1708,170.44,170.4,35.17]
[1717707941668,2.1707,170.45,170.4,35.17]
[1717707942078,47.1706,170.46,170.41,35.17]
[1717707942278,2.1706,170.46,170.41,35.17]
[1717707942588,2.1707,170.45,170.41,35.17]
[1717707943164,2.1707,170.45,170.38,35.17]
[1717707943463,2.1708,170.44,170.38,35.17]
[1717707944269,2.1707,170.45,170.38,35.17]
[1717707944589,6.3043,170.46,170.33,35.17]
[1717707944774,2.1713,170.41,170.33,35.17]
[1717707945472,65.0,170.42,170.33,35.17]
[1717707945473,67.1711,170.42,170.33,35.17]
[1717707945683,2.1712,170.41,170.34,35.17]
[1717707946669,2.1712,170.41,170.32,35.17]
[1717707947284,2.1713,170.4,170.32,35.17]
[1717707948583,4.3427,170.4,170.27,40.68154454]
[1717707948873,49.3431,170.39,170.29,35.17]
[1717707949070,2.1717,170.37,170.29,35.17]
[1717707949794,2.1718,170.36,170.27,35.9720948]
[1717707950292,4.3433,170.38,170.29,35.17]
[1717707950495,45.0,170.37,170.29,35.17]
[1717707950990,2.1719,170.36,170.29,35.17]
[1717707951295,2.1721,170.34,170.27,35.9720948]
[1717707951485,5.6487,170.35,170.29,35.17]
[1717707951691,2.1722,170.33,170.29,35.17]
[1717707952071,45.0,170.34,170.29,35.17]
[1717707952269,45.9646,170.35,170.29,35.17]
[1717707952490,45.9646,170.35,170.3,35.17]
[1717707953379,45.9646,170.35,170.27,0.8020948]
[1717707953585,45.0,170.34,170.27,0.8020948]
[1717707953886,3.1366,170.35,170.27,0.8020948]
[1717707954085,3.1366,170.35,170.28,35.17]
[1717707954295,2.1721,170.34,170.28,35.17]
[1717707954782,3.1366,170.35,170.28,35.17]
[1717707955602,2.1722,170.34,170.29,35.17]
[1717707955801,3.1366,170.35,170.29,35.17]
[1717707956096,2.1721,170.34,170.29,35.17]
[1717707956882,2.1721,170.34,170.27,0.8020948]
[1717707957077,0.9646,170.35,170.27,0.8020948]
[1717707957397,2.1721,170.34,170.27,0.8020948]
[1717707959781,3.1366,170.35,170.27,0.8020948]
[1717707961098,5.3087,170.35,170.27,0.8020948]
[1717707961278,47.1721,170.34,170.27,0.8020948]
[1717707961473,0.9646,170.35,170.27,0.8020948]
[1717707961699,45.0,170.33,170.27,0.8020948]
[1717707961899,0.9646,170.35,170.27,0.8020948]
[1717707962103,0.9646,170.35,170.29,35.17]
[1717707962395,0.9646,170.35,170.33,35.17]
[1717707962616,0.9646,170.35,170.33,56.8235]
[1717707963303,0.9646,170.35,170.34,77.0465]
[1717707963505,0.9646,170.35,170.34,35.17]
[1717707964306,0.9646,170.35,170.3,35.17]
[1717707965496,0.9646,170.35,170.27,35.9720948]
[1717707965684,0.9646,170.35,170.29,35.17]
[1717707977186,3.1366,170.35,170.29,35.17]
[1717707977404,0.9646,170.35,170.29,35.17]
[1717707978009,2.1721,170.34,170.29,35.17]
[1717707978185,2.1723,170.33,170.27,35.9720948]
[1717707978384,2.1722,170.34,170.27,35.9720948]
[1717707979187,2.1722,170.34,170.27,0.8020948]
[1717707979806,45.9646,170.35,170.27,0.8020948]
[1717707980008,2.1721,170.34,170.27,0.8020948]
[1717707980393,2.1721,170.34,170.28,35.17]
[1717707981011,3.1366,170.35,170.28,35.17]
[1717707981510,3.1366,170.35,170.29,35.17]
[1717707982610,3.1366,170.35,170.27,0.8020948]
[1717707982797,2.1721,170.34,170.28,35.17]
[1717707985392,3.1366,170.35,170.28,35.17]
[1717707986211,2.1721,170.34,170.28,35.17]
[1717707987817,0.9646,170.35,170.28,35.17]
[1717707987818,3.1366,170.35,170.28,35.17]
[1717707988809,0.9646,170.35,170.28,35.17]
[1717707989016,3.1366,170.35,170.28,35.17]
[1717707990008,0.9646,170.35,170.28,35.17]
[1717707990210,0.9646,170.35,170.3,35.17]
[1717707990397,0.9646,170.35,170.32,35.17]
[1717707991312,0.9646,170.35,170.34,35.17]
[1717707991493,0.9646,170.35,170.34,55.17]
[1717707991817,0.9646,170.35,170.34,61.557]
[1717707992512,6.0383,170.44,170.34,61.557]
[1717707992710,19.1913,170.49,170.36,35.17]
[1717707992919,2.1705,170.47,170.38,35.17]
[1717707993122,2.1706,170.46,170.38,35.17]
[1717707993423,2.1704,170.48,170.38,35.17]
[1717707993719,2.1704,170.48,170.4,35.17]
[1717707993893,2.1705,170.47,170.4,35.17]
[1717707994696,2.1703,170.48,170.4,35.17]
[1717707995011,6.17,170.49,170.4,35.17]
[1717707995012,8.3402,170.49,170.4,35.17]
[1717707995212,8.3402,170.49,170.42,35.17]
[1717707995406,2.1703,170.48,170.42,35.17]
[1717707996218,47.1703,170.48,170.42,35.17]
[1717707996402,47.1703,170.48,170.4,35.17]
[1717707996601,47.1703,170.48,170.42,35.17]
[1717707997610,45.0,170.48,170.43,35.17]
[1717707998708,45.0,170.48,170.4,35.17]
[1717707998916,45.0,170.48,170.42,35.17]
[1717707999798,47.1704,170.48,170.43,35.17]
[1717708000025,2.1704,170.47,170.43,35.17]
[1717708000313,51.006,170.47,170.43,35.17]
[1717708000530,53.1765,170.47,170.43,35.17]
[1717708000843,8.4374,170.46,170.43,35.17]
[1717708001005,45.0,170.45,170.4,35.17]
[1717708003321,8.5568,170.44,170.4,35.17]
[1717708003608,45.0,170.43,170.4,35.17]